Cogmind - Beta 16 @@@ ROGUE MODE // 2026.01.23 @ 06:28:17 Player: MrFartsburg Result: Destroyed by OS-BME(z) with Makeshift Laser Performance ------------- Evolutions (1) 500 Regions Visited (4) 800 Robots Destroyed (7) 35 Value Destroyed (166) 166 Prototype IDs (0) 0 Alien Tech Used (0) 0 Bonus (148) 148 TOTAL SCORE: 1649 Bonus ------- Pacifist 200 Friendly Fire -52 Cogmind --------- Core Integrity 0/400 Matter 254/300 Energy 33/100 System Corruption 7% Temperature Cool (27) Movement Core (200) Ox3 Location -7/Zion Parts ------- > --- POWER (2) -------- (None) > --- PROPULSION (3) --- (None) > --- UTILITY (2) ------ Medium Storage Unit > --- WEAPON (2) ------- Light Assault Rifle > --- INVENTORY (10) --- Light Treads Light Treads Coolant Injector Humpback Light Cannon Peak State ------------ > --- POWER ------------ Ion Engine Light Ion Engine > --- PROPULSION ------- Aluminum Leg Aluminum Leg Aluminum Leg > --- UTILITY ---------- Medium Storage Unit Light Armor Plating > --- WEAPON ----------- Assault Rifle Advanced Assault Cannon > --- INVENTORY -------- Light Treads Light Treads Medium Matter Pod EM Pulse Gun Small Laser Light EM Pulse Cannon Light Assault Rifle Light Cannon Grenade Launcher [Rating: 13] Favorites ----------- Power Light Ion Engine Engine Light Ion Engine Propulsion Aluminum Leg Leg Aluminum Leg Utility Small Storage Unit Storage Small Storage Unit Protection Light Armor Plating Weapon Assault Rifle Energy Gun EM Pulse Gun Energy Cannon Light EM Pulse Cannon Ballistic Gun Assault Rifle Ballistic Cannon Advanced Assault Cannon Launcher Grenade Launcher Build | -11 -10 -9 -9 -7 ------- Run | Yrd Mat Mat Min Zio Slots Evolved 2 | . . 2 . . Power 1 | . . 1 . . Propulsion 1 | . . 1 . . Utility . | . . . . . Weapon . | . . . . . Parts Attached 15 | 6 2 3 . 4 Power 3 | 1 . 2 . . Engine 3 | 1 . 2 . . Core . | . . . . . Reactor . | . . . . . Propulsion 3 | 2 . 1 . . Treads . | . . . . . Leg 3 | 2 . 1 . . Wheel . | . . . . . Hover . | . . . . . Flight . | . . . . . Utility 3 | 1 2 . . . Device . | . . . . . Storage 2 | 1 1 . . . Processor . | . . . . . Hackware . | . . . . . Protection 1 | . 1 . . . Artifact . | . . . . . Weapon 6 | 2 . . . 4 Energy Gun 1 | 1 . . . . Energy Cannon 1 | . . . . 1 Ballistic Gun 2 | 1 . . . 1 Ballistic Cannon 1 | . . . . 1 Launcher 1 | . . . . 1 Special Weapon . | . . . . . Impact Weapon . | . . . . . Slashing Weapon . | . . . . . Piercing Weapon . | . . . . . Special Melee Weapon . | . . . . . Unidentified Prototypes . | . . . . . Parts Lost 11 | . . 1 . 10 Power 3 | . . 1 . 2 Propulsion 3 | . . . . 3 Utility 1 | . . . . 1 Weapon 4 | . . . . 4 Highest Loss Streak 10 | . . 1 . 10 To Critical Strikes . | . . . . . Average Backups 7 | 5 7 8 10 9 Power . | 1 1 . . . Propulsion 3 | 3 4 4 4 3 Utility . | . . 1 1 1 Weapon 2 | . 1 3 5 4 Tool/Special . | . . . . . Unused Backups 9 | . . . . 9 Power . | . . . . . Propulsion 4 | . . . . 4 Utility 3 | . . . . 3 Weapon 2 | . . . . 2 Tool/Special . | . . . . . Average Slot Usage (%) 95 | . 95 88 100 97 Engine 20 | . 14 20 22 21 Leg 30 | . 28 24 33 32 Storage 11 | . 14 11 11 11 Protection 10 | . 10 11 11 10 Energy Gun 8 | . 14 11 11 6 Ballistic Gun 11 | . 14 11 11 10 Ballistic Cannon 2 | . . . . 3 Peak Build Rating 13 | 6 7 10 10 13 Average Rating 7 | 5 6 8 10 10 On Entrance 6 | . 6 7 10 10 Avg Prop Armor Cover (%) . | . . . . . Naked Turns . | . . . . . Heaviest Build 29 | 12 20 25 25 29 Greatest Support 30 | 20 20 30 30 30 Greatest Overweight (x) 3 | 2 . 1 . 3 Average Overweight (x) . | . . . . . Largest Inventory Capacity 10 | 8 10 10 10 10 Average Capacity 8 | 7 9 10 10 10 Most Carried 10 | 6 8 10 10 10 Average Carried 7 | 5 7 8 10 9 Final Capacity 10 | 8 10 10 10 10 Final Carried 10 | 6 8 10 10 6 Class Distribution -------------------- 100% | Mutant Dominant Class ---------------- Mutant | -10/Materials Mutant | -9/Materials Mutant | -9/Mines Mutant | -7/Zion Resources | -11 -10 -9 -9 -7 ----------- Run | Yrd Mat Mat Min Zio Matter Collected 455 | 260 . 93 . 102 Remotely . | . . . . . Salvage Created 231 | . . 188 . 43 Parts 16 | . . 9 . 7 Haulers Intercepted . | . . . . . Recyclers Shooed . | . . . . . Parts Field Recycled . | . . . . . Retrieved Matter . | . . . . . Parts Self-Destructed . | . . . . . Prevented . | . . . . . Parts Restored . | . . . . . Kills | -11 -10 -9 -9 -7 ------- Run | Yrd Mat Mat Min Zio Combat Hostiles Destroyed 4 | . . 4 . . Guns 4 | . . 4 . . Classes Destroyed 2 | . . 1 . 1 Grunt 4 | . . 4 . . Zionite 3 | . . . . 3 Best Kill Streak 4 | . . 4 . 3 Combat Bots Only 4 | . . 4 . . Max Kills in Single Turn 3 | . . 1 . 3 Gunslinging . | . . . . . Exploded . | . . . . . Melee . | . . . . . Uniques/NPCs Destroyed . | . . . . . Combat | -11 -10 -9 -9 -7 -------- Run | Yrd Mat Mat Min Zio Hostile Shots Fired 107 | . . 27 . 80 Missed 26 | . . 7 . 19 Hits 81 | . . 20 . 61 Melee 13 | . . . . 13 Projectile 68 | . . 20 . 48 Critical Strikes 4 | . . . . 4 Damage Taken 1361 | . . 217 . 1144 Core 403 | . . 32 . 371 Absorbed by Shields . | . . . . . Core Remaining (%) 100 | 100 100 . . . Volleys Fired 24 | . . 14 . 10 Largest 2 | . . 2 . 2 Hottest 86 | . . 60 . 86 Shots Fired 41 | . . 28 . 13 Gun 36 | . . 28 . 8 Cannon 3 | . . . . 3 Launcher 2 | . . . . 2 Special . | . . . . . Kinetic 22 | . . 14 . 8 Thermal . | . . . . . Explosive 2 | . . . . 2 Electromagnetic 17 | . . 14 . 3 Robot Hit Streak 5 | . . 5 . 4 Robot Miss Streak 2 | . . 2 . 1 Penetration Max . | . . . . . Secondary Targets 1 | . . 1 . . Max Gunslinging Chain 1 | . . 1 . . Shots Hit Robots 25 | . . 19 . 6 Core Hits 15 | 1 . 7 . 7 Critical Kills . | . . . . . Critical Parts Destroyed . | . . . . . Critical Strikes . | . . . . . Melee Attacks . | . . . . . Impact . | . . . . . Slashing . | . . . . . Piercing . | . . . . . Sneak Attacks . | . . . . . Combat Hostiles . | . . . . . Follow-up Attacks . | . . . . . Damage Inflicted 600 | 7 . 252 . 341 Guns 289 | . . 246 . 43 Cannons 45 | . . . . 45 Explosions 250 | . . . . 250 Melee . | . . . . . Ramming 16 | 7 . 6 . 3 Kinetic 175 | . . 144 . 31 Thermal . | . . . . . Explosive 250 | . . . . 250 Electromagnetic 159 | . . 102 . 57 Impact . | . . . . . Slashing . | . . . . . Piercing . | . . . . . Highest Corruption 7 | . . . . 7 Average Corruption 6 | . . . . 6 Corruption Purged . | . . . . . Corruption Blocked . | . . . . . Effects 1 | . . . . 1 Message Errors 1 | . . . . 1 Overload Shots . | . . . . . Overflow Damage . | . . . . . Projectiles . | . . . . . Explosions . | . . . . . Melee . | . . . . . Knockbacks . | . . . . . Impact . | . . . . . Kinetic . | . . . . . Secondary . | . . . . . Self-Inflicted Damage 48 | . . . . 48 Shots 2 | . . . . 2 Rammed 2 | . . . . 2 Targets Rammed 5 | 2 . 1 . 2 Kicked 3 | 2 . 1 . . Crushed . | . . . . . Highest Temperature 284 | . . 284 . 3 Average Temperature 148 | . . 155 . 2 Received Heat Transfer 156 | . . 120 . 36 Siege Activations . | . . . . . Martial Activations . | . . . . . Shielding Activations . | . . . . . Robots Disrupted . | . . . . . Combat Hostiles . | . . . . . Robots Corrupted . | . . . . . Combat Hostiles . | . . . . . Parts Fried . | . . . . . Impact Corruptions . | . . . . . Robots Melted . | . . . . . Combat Hostiles . | . . . . . Parts Melted . | . . . . . Heat Transferred . | . . . . . Parts Sabotaged . | . . . . . Parts Stolen . | . . . . . Parts Stripped . | . . . . . Power Chain Reactions . | . . . . . Alert | -11 -10 -9 -9 -7 ------- Run | Yrd Mat Mat Min Zio Maximum Alert Level . | . . . . . Low Security (%) 100 | 100 100 100 100 . Level 1 . | . . . . . Level 2 . | . . . . . Level 3 . | . . . . . Level 4 . | . . . . . Level 5 . | . . . . . High Security . | . . . . . Max Security . | . . . . . Peak Influence 70 | . . 70 21 . Initial 21 | . . . 21 . Average 2 | . . 22 8 . Influence Increases 95 | . . 95 . . Destroy 0b10 Robot/C 80 | . . 80 . . Destroy Leader 10 | . . 10 . . Successful Hack 5 | . . 5 . . Influence Decreases 95 | . . 40 55 . Entered New Map 34 | . . . 34 . Time Decay 51 | . . 30 21 . Lost Part 10 | . . 10 . . Squads Dispatched 1 | . . 1 . . Investigation . | . . . . . Extermination . | . . . . . Reinforcement 1 | . . 1 . . Assault . | . . . . . Garrison . | . . . . . Intercept . | . . . . . Searches Triggered . | . . . . . Construction Impeded . | . . . . . Haulers Reinforced . | . . . . . Active Scanning Responses . | . . . . . Cargo Convoy Interrupts . | . . . . . Stealth | -11 -10 -9 -9 -7 --------- Run | Yrd Mat Mat Min Zio Distress Signals . | . . . . . Communications Jammed . | . . . . . Distress Signals . | . . . . . Times Spotted 14 | . . 7 . 7 Peak Tracking Total 6 | . . 4 . 6 Tactical Retreats . | . . . . . Traps | -11 -10 -9 -9 -7 ------- Run | Yrd Mat Mat Min Zio Traps Triggered . | . . . . . Indirectly . | . . . . . Trap Hack Attempts . | . . . . . Triggered . | . . . . . Disarmed . | . . . . . Reprogrammed . | . . . . . Reused . | . . . . . Traps Extracted . | . . . . . Installed . | . . . . . Triggered . | . . . . . Machines | -11 -10 -9 -9 -7 ---------- Run | Yrd Mat Mat Min Zio Machines Disabled . | . . . . . Max in Single Turn . | . . . . . Machines Repaired . | . . . . . Machines Dismantled . | . . . . . Machines Sabotaged . | . . . . . Overloaded Fab Kills . | . . . . . Hacking | -11 -10 -9 -9 -7 --------- Run | Yrd Mat Mat Min Zio Machines Accessed 3 | . 1 1 . 1 Terminals 1 | . . 1 . . Fabricators . | . . . . . Repair Stations . | . . . . . Recycling Units 1 | . 1 . . . Scanalyzers . | . . . . . Garrison Access . | . . . . . Total Hacks 9 | . 2 2 . 5 Successful 6 | . . 1 . 5 Failed 3 | . 2 1 . . Catastrophic . | . . . . . Database Lockouts . | . . . . . Manual 3 | . . . . 3 Terminals 2 | . . 2 . . Fabricators . | . . . . . Repair Stations . | . . . . . Recycling Units 2 | . 2 . . . Scanalyzers . | . . . . . Garrison Access . | . . . . . Terminal Hacks 6 | . . 1 . 5 Part Schematic 5 | . . . . 5 Zone Layout 1 | . . 1 . . Fabricator Hacks . | . . . . . Repair Station Hacks . | . . . . . Recycling Unit Hacks . | . . . . . Scanalyzer . | . . . . . Garrison Access Hacks . | . . . . . Unauthorized Hacks . | . . . . . Terminals . | . . . . . Fabricators . | . . . . . Repair Stations . | . . . . . Recycling Units . | . . . . . Scanalyzers . | . . . . . Garrison Access . | . . . . . Data Cores Recovered . | . . . . . Used . | . . . . . Hacking Detections 2 | . 1 1 . . Full Trace Events . | . . . . . Feedback Events . | . . . . . Feedback Blocked . | . . . . . Robot Schematics Acquired . | . . . . . Robots Built . | . . . . . Authchips . | . . . . . Time . | . . . . . Total Robot Build Rating . | . . . . . Part Schematics Acquired 5 | . . . . 5 Parts Built . | . . . . . Authchips . | . . . . . Time . | . . . . . Total Part Build Rating . | . . . . . Part Studies Acquired . | . . . . . Parts Repaired . | . . . . . Time . | . . . . . Parts Recycled . | . . . . . Recycled Matter . | . . . . . Retrieved Matter . | . . . . . Retrieved Components . | . . . . . Parts Scanalyzed . | . . . . . Part Schematics Acquired . | . . . . . Parts Damaged . | . . . . . Bothacking | -11 -10 -9 -9 -7 ------------ Run | Yrd Mat Mat Min Zio Used RIF Installer . | . . . . . Robots Hacked . | . . . . . Non-combat . | . . . . . Combat . | . . . . . Robot Hacks Applied . | . . . . . Relay Couplers Released . | . . . . . Fabnet Peak Effective % . | . . . . . Robots Rewired . | . . . . . Allies Hacked . | . . . . . Hacks Repelled . | . . . . . Allies | -11 -10 -9 -9 -7 -------- Run | Yrd Mat Mat Min Zio Total Allies . | . . . . . Largest Group . | . . . . . Highest-Rated Group . | . . . . . Highest-Rated Ally . | . . . . . Total Orders . | . . . . . Ally Attacks . | . . . . . Total Damage . | . . . . . Kills . | . . . . . Allies Corrupted . | . . . . . Allies Melted . | . . . . . Intel | -11 -10 -9 -9 -7 ------- Run | Yrd Mat Mat Min Zio Active Infowar (turns) . | . . . . . Robot Analysis Total . | . . . . . Derelict Logs Recovered 1 | . . . . 1 Drone Launches . | . . . . . Drone Recoveries . | . . . . . Exploration | -11 -10 -9 -9 -7 ------------- Run | Yrd Mat Mat Min Zio Turns Passed 2753 | 1653 97 158 73 772 Spaces Moved 1373 | 563 75 69 61 605 Core 22 | 21 . . . 1 Treads . | . . . . . Legs 1351 | 542 75 69 61 604 Wheels . | . . . . . Hover . | . . . . . Flight . | . . . . . Fastest Speed 50 | 50 120 120 120 120 Average Speed 121 | 118 120 155 120 120 Slowest Speed 200 | 150 120 190 120 200 Overloaded Moves . | . . . . . Propulsion Burnouts . | . . . . . Robots Hopped . | . . . . . Potential Cave-ins . | . . . . . Cave-ins Triggered . | . . . . . Exploration Rate (%) 35 | 61 22 12 16 67 Regions Visited 4 Branch Regions 2 Pre-discovered Areas 2 | . . . . 2 Known Exits Taken . | . . . . . Unknown Exits Taken 4 | 1 1 1 1 . Scrap Searched 2 | . . . . 2 Spaces Dug . | . . . . . Terrain Destroyed . | . . . . . Melee . | . . . . . Projectile . | . . . . . AOE . | . . . . . Terrain Rammed . | . . . . . Walls Destroyed . | . . . . . Machines Disabled . | . . . . . Actions | -11 -10 -9 -9 -7 --------- Run | Yrd Mat Mat Min Zio Total 2418 | 1548 82 91 61 636 Wait 973 | 966 1 . 1 5 Move 1369 | 562 74 68 60 605 Hop . | . . . . . Pick Up 24 | 12 4 5 . 3 Fast Attach . | . . . . . Attach 15 | 6 2 3 . 4 Detach . | . . . . . Swap 3 | . . . . 3 Drop 5 | . 1 . . 4 Fire 24 | . . 14 . 10 Melee . | . . . . . Ram 2 | . . . . 2 Kick 3 | 2 . 1 . . Crush . | . . . . . Escape Stasis . | . . . . . Rewire . | . . . . . Trap . | . . . . . Miscellaneous . | . . . . . Route ------- -11/Scrapyard -10/Materials -9/Materials -9/Mines -7/Zion History --------- Turn | Location | Event 13 | -11/Scrapyard | Discovered new exit (range 15) 1654 | -11/Scrapyard | Entered Materials 1655 | -10/Materials | Build established: Mutant 1738 | -10/Materials | Discovered new exit (range 8) 1751 | -10/Materials | Entered another Materials area 1751 | -9/Materials | Evolved 2 slots: Power x1, Propulsion x1 1894 | -9/Materials | Discovered new exit (range 15) 1909 | -9/Materials | Entered Mines 1970 | -9/Mines | A Derelict revealed a hidden shortcut to a safe place 1982 | -9/Mines | Entered Zion 2061 | -7/Zion | Learned 4 Factory zone layouts 2117 | -7/Zion | Received a visual enhancement algorithm 2122 | -7/Zion | Ran a visual enhancement algorithm 2249 | -7/Zion | Learned location of Recycling (-7) 2689 | -7/Zion | Ran a visual enhancement algorithm 2721 | -7/Zion | Attacked by Zionites 2740 | -7/Zion | Core integrity fell below 50% 2751 | -7/Zion | Core integrity fell below 20% 2754 | -7/Zion | Destroyed by OS-BME(z) with Makeshift Laser Last Messages --------------- System corrupted by crushing effect (+4). Knocked back. Aluminum Leg destroyed. FA-DB1(z) bursts out of the Twisted Machinery. FA-DB1(z) destroyed. Q8-SZ6(z) destroyed. P0-ANN(z) destroyed. Lgt. EM Pulse Cannon destroyed. Grenade Launcher destroyed. Slammed into F4-U3C(M). Destabilizing: System corrupted (+1). Slammed into F4-U3C(M). Adv. Assault Cannon severed. OS-BME(z) bursts out of the Twisted Machinery. OS-BME(z) pulls a Mak. Laser out of the Twisted Machinery. 2W-UOP(z) suffers critical hit (Burn). 2W-UOP(z) destroyed. XECI=VIZ7CMO KUE/3C%6NMIMIL/0 Critical hit (Burn: +37). Map ----- +----------------------------------------------------+ | ????????????????????????????????????????????????? | | ????????????????????????????????????????????????? | | ????????????????????????????????????????????????? | | ????????????????????????????????????????????????? | | ????????????????????????????????????????????????? | | ????????????????????????????????????????????????? | | ????????????????????????????????????????????????? | | ???????????????????????????????????????????????## | | ???????????????????????????????????????????????#" | | ???????????????????????????????????####????????#" | | ????????????????????????????????####""##????##?#" | | ????????????????????????????????#"#""""##??##"##" | | ????????????????????????????????""""" ""####""""" | | ????????????????????????????######" """"##"" | | ????????????????????????????#"#"""" ""#" | | ????????????????????????????##"""" ""#""" | | ????????????????????????????#"" ""#""""" | | ????????????????????????????#"" """""""" | | ?????????????????????########"" | | ?????????????????????"""""?#"" | | ??????????????????????"""###""""" """""""" | | ??????????????????????#""""##"""" """##"""" | | ??????????????????????" X"""""""" ""#####""" | | ??????????????????????# "z#" " """#"#""#" | | ?????????????????????## /%=/ """#"""""# | | ?????????????????????" @=*%%! "" """"" ""# | | ?????????????????????" Mz=* """ """ "" | | ?????????????????????# """""" "" "" | | ????????????????????#""""""#"""" | | ????????????????????#"""#####""""" | | ????????????????????#####??###""""" " | | ???????????????????????????#""""""" " | | ??????????????????????????###""""" " | | ??????????????????????????#""" " | | ??????????????????????????##" """ """ " | | ??????????????????????????##" "#""""""" " | | ?????????????????????????##"" """"#"#" | | ?????????????????????????#""" ""#"""" | | ?????????????????????????##"" """""" | | ??????????????????????????#" """ | | ??????????????????????????#" "" | | ?????????????????????????#"" """ | | ?????????????????????????""""""""""" | | ?????????????????????????#"####""""" | | ??????????????????????????????##""#" ## ## | | ???????????????????????????????##""" # # | | ????????????????????????????????##"" """ | | ????????????????????????????????""#" """ | | ????????????????????????????????""#" """ | | ?????????????????????????????????""" # # | +----------------------------------------------------+ Best States ------------- Heat Dissipation 28 Energy Generation 15 Energy Capacity 275 Matter Stores 300 Matter Capacity 300 Sight Range 16 Terrain Scan Density 10 Armor Coverage 150 Evasion (%) 55 Item Schematics ----------------- Riot Gun | -7/Zion | Free Flamer | -7/Zion | Free Hvy. Riot Gun | -7/Zion | Free Ripper | -7/Zion | Free Phasing Sabre | -7/Zion | Free Robot Schematics ------------------ None Fabricated ------------ Nothing Repaired ---------- Nothing Studied --------- None Alien Tech Used ----------------- None Achievements -------------- Ghost 'Em Robot Respite Challenges ------------ None Game ------ Seed DirtyStealthActivator Manual? 0 Play Time 00:21:16 Cumulative 8.6 hours Start 2026.01.23 @ 06:05:44 End 2026.01.23 @ 06:28:17 Sessions 1 Manual Loads 0 Difficulty Rogue Special Mode None Game No. 14 Rogue 14 Adventurer 0 Explorer 0 Win Type - Total 0 Types 0/0/0/0/0/0/0/0/0/0 Lore% 3 Gallery% 10 Achievement% 9 Wizard Run 0 Options --------- Layout 1 ASCII 0 Keyboard 0 Movement Numpad Keybinds 0 Fullscreen 1 Font 32/SmallcapsGlow Map View 50x35 Zoom Use 0% Tactical HUD 0 Map Filters NONE Filters NONE Steam 1 RUN: ae256c2d-8356-4b0b-b8b0-7b5735310928